Workbook

Sheet TRANSFER
B2: VERSION | E2: 1.54
T3: CHARACTER TRANSFER TOOL
H5: ForgedAnvil
W6: STEP 1 | AA6: SELECT THE CHARACTER FILE YOU WOULD LIKE TO TRANSFER FROM
H7: CHARACTER TRANSFER TOOL
W8: STEP 2 | AA8: SELECT THE TEMPLATE FILE YOU WOULD LIKE TO TRANSFER TO
B9: CLICK THE ANVIL TO DOWNLOAD THE LATEST VERSION
W10: STEP 3 | AA10: CLICK THE BEGIN TRANSFER BUTTON
I12: FILE LOCATIONS | W12: THE PROCESS TAKES A FEW SECONDS TO COMPLETE
B14: CHARACTER | AU14: …
B17: TEMPLATE | AU17: …
W20: ` | BA20: ="Supports ForgedAnvil D&D 5E Character Generator v1.31 - v"&TEXT(E2,"0.00") -> Supports ForgedAnvil D&D 5E Character Generator v1.31 - v1.54

Sheet CELLS (hidden)
A1: 1 | B1: Start | C1: TEMPLATE | D1: CHARACTER | E1: CHANGE | F1: SECTION | G1: NAME | H1: CHARACTER | I1: TEMPLATE | J1: 1.31 | K1: 1.41 | L1: 1.46 | M1: 1.49 | N1: 1.52 | O1: 1.60
A2: =A1+1 -> 2 | B2: Start | C2: =HLOOKUP(I$3,$J$1:$O$630,$A2,FALSE) -> AE3:AE6 | D2: =HLOOKUP(H$3,$J$1:$O$630,$A2,FALSE) -> AE3:AE6 | E2: =IF(C2=D2,"",TRUE) ->  | F2: OPTIONS | H2: 1.50 | I2: =TRANSFER!E2 -> 1.54 | J2: AE3:AE6 | K2: AE3:AE6 | L2: AE3:AE6 | M2: AE3:AE6 | N2: AE3:AE6
A3: =A2+1 -> 3 | B3: Start | C3: AN3:AN6 | D3: AN3:AN6 | E3: =IF(C3=D3,"",TRUE) ->  | F3: OPTIONS | H3: =VLOOKUP(H$2,$H$4:$I$65,2,FALSE) -> 1.49 | I3: =VLOOKUP(I$2,$H$4:$I$65,2,FALSE) -> 1.52 | J3: AN3:AN6 | K3: AN3:AN6 | L3: AN3:AN6 | M3: AN3:AN6 | N3: AN3:AN6
A4: 4 | B4: Start | C4: AW3:AW6 | D4: AW3:AW6 | F4: OPTIONS | H4: VERSIONS | J4: AW3:AW6 | K4: AW3:AW6 | L4: AW3:AW6 | M4: AW3:AW6 | N4: AW3:AW6
A5: 5 | B5: Start | C5: BF3:BF6 | D5: BF3:BF6 | F5: OPTIONS | H5: 1.31 | I5: 1.31 | J5: BF3:BF6 | K5: BF3:BF6 | L5: BF3:BF6 | M5: BF3:BF6 | N5: BF3:BF6
A6: 6 | B6: Start | C6: BN2 | D6: BN2 | F6: OPTIONS | G6: ALL DETAILS | H6: 1.32 | I6: 1.31 | J6: ="" ->  | K6: ="" ->  | L6: BN2 | M6: BN2 | N6: BN2
A7: 7 | B7: Start | C7: BY2 | D7: BY2 | F7: OPTIONS | G7: RACE | H7: 1.33 | I7: 1.31 | J7: ="" ->  | K7: ="" ->  | L7: BY2 | M7: BY2 | N7: BY2
A8: 8 | B8: Start | C8: CF2 | D8: CF2 | F8: OPTIONS | G8: BACKGROUND | H8: 1.34 | I8: 1.31 | J8: ="" ->  | K8: ="" ->  | L8: CF2 | M8: CF2 | N8: CF2
A9: 9 | B9: Start | C9: CK2 | D9: CK2 | F9: OPTIONS | G9: CLASS | H9: 1.35 | I9: 1.31 | J9: ="" ->  | K9: ="" ->  | L9: CK2 | M9: CK2 | N9: CK2
A10: 10 | B10: Start | C10: CP2 | D10: CP2 | F10: OPTIONS | G10: FEATS | H10: 1.36 | I10: 1.31 | J10: ="" ->  | K10: ="" ->  | L10: CP2 | M10: CP2 | N10: CP2
A11: 11 | B11: Start | C11: H12:H17 | D11: H12:H17 | F11: ABILITY SCORES | G11: ABILITY SCORES | H11: 1.37 | I11: 1.31 | J11: H12:H17 | K11: H12:H17 | L11: H12:H17 | M11: H12:H17 | N11: H12:H17
A12: 12 | B12: Start | C12: N18:N19 | D12: N18:N19 | F12: ABILITY SCORES | G12: HUMAN/HALF ELF ADJUSTMENT | H12: 1.38 | I12: 1.31 | J12: N18:N19 | K12: N18:N19 | L12: N18:N19 | M12: N18:N19 | N12: N18:N19
A13: 13 | B13: Start | C13: T12:AO17 | D13: T12:AO17 | F13: ABILITY SCORES | G13: LEVEL ADJUSTMENT | H13: 1.39 | I13: 1.31 | J13: T12:AO17 | K13: T12:AO17 | L13: T12:AO17 | M13: T12:AO17 | N13: T12:AO17
A14: 14 | B14: Start | C14: AQ12:AQ17 | D14: AQ12:AQ17 | F14: ABILITY SCORES | G14: MAGIC MODIFIER | H14: 1.40 | I14: 1.31 | J14: AQ12:AQ17 | K14: AQ12:AQ17 | L14: AQ12:AQ17 | M14: AQ12:AQ17 | N14: AQ12:AQ17
A15: 15 | B15: Start | C15: BD12:BD17 | D15: BD12:BD17 | F15: ABILITY SCORES | G15: SAVING THROW PROFICENCY OVERRIDE | H15: 1.41 | I15: 1.41 | J15: BD12:BD17 | K15: BD12:BD17 | L15: BD12:BD17 | M15: BD12:BD17 | N15: BD12:BD17
A16: 16 | B16: Start | C16: BD19 | D16: BD19 | F16: ABILITY SCORES | G16: PROFICENCY BONUS ADJUSTMENT | H16: 1.42 | I16: 1.41 | J16: BD19 | K16: BD19 | L16: BD19 | M16: BD19 | N16: BD19
A17: 17 | B17: Start | C17: BD20 | D17: BD20 | F17: ABILITY SCORES | G17: INITIATIVE AJDUSTMENT | H17: 1.43 | I17: 1.41 | J17: BD20 | K17: BD20 | L17: BD20 | M17: BD20 | N17: BD20
A18: 18 | B18: Start | C18: F25 | D18: F25 | F18: CLASS & LEVEL | G18: EXPERIENCE | H18: 1.44 | I18: 1.41 | J18: F25 | K18: F25 | L18: F25 | M18: F25 | N18: F25
A19: 19 | B19: Start | C19: F28:F47 | D19: F28:F47 | F19: CLASS & LEVEL | G19: CLASS LEVEL 1-20 | H19: 1.45 | I19: 1.41 | J19: F28:F47 | K19: F28:F47 | L19: F28:F47 | M19: F28:F47 | N19: F28:F47
A20: 20 | B20: Start | C20: N29:N48 | D20: N29:N48 | F20: CLASS & LEVEL | G20: HIT POINTS LEVEL 1-20 ADDITION HP | H20: 1.46 | I20: 1.46 | J20: N29:N48 | K20: N29:N48 | L20: N29:N48 | M20: N29:N48 | N20: N29:N48
A21: 21 | B21: Start | C21: J57:J59 | D21: J57:J59 | F21: CLASS & LEVEL | G21: SUBCLASS | H21: 1.47 | I21: 1.46 | J21: J57:J59 | K21: J57:J59 | L21: J57:J59 | M21: J57:J59 | N21: J57:J59
A22: 22 | B22: Start | C22: J60 | D22: J60 | F22: CLASS & LEVEL | G22: Druid Land Origin | H22: 1.48 | I22: 1.46 | J22: J60 | K22: J60 | L22: J60 | M22: J60 | N22: J60
A23: 23 | B23: Start | C23: J61 | D23: J61 | F23: CLASS & LEVEL | G23: Draconic Ancestry | H23: 1.49 | I23: 1.49 | J23: J61 | K23: J61 | L23: J61 | M23: J61 | N23: J61
A24: 24 | B24: Start | C24: J62 | D24: J62 | F24: CLASS & LEVEL | G24: Warlock Pact Boon | H24: 1.50 | I24: 1.49 | J24: J62 | K24: J62 | L24: J62 | M24: J62 | N24: J62
A25: 25 | B25: Start | C25: J65:J68 | D25: J65:J68 | F25: CLASS & LEVEL | G25: FIGHTING STYLE | H25: 1.51 | I25: 1.49 | J25: J65:J68 | K25: J65:J68 | L25: J65:J68 | M25: J65:J68 | N25: J65:J68
A26: 26 | B26: Start | C26: I71:N74 | D26: I71:N74 | F26: CLASS & LEVEL | G26: EXPERTISE | H26: 1.52 | I26: 1.52 | J26: I71:N74 | K26: I71:N74 | L26: I71:N74 | M26: I71:N74 | N26: I71:N74
A27: 27 | B27: Start | C27: J77:J79 | D27: J77:J79 | F27: CLASS & LEVEL | G27: TOTEM SPIRIT | H27: 1.53 | I27: =I26 -> 1.52 | J27: J77:J79 | K27: J77:J79 | L27: J77:J79 | M27: J77:J79 | N27: J77:J79
A28: 28 | B28: Start | C28: J82:J83 | D28: J82:J83 | F28: CLASS & LEVEL | G28: KNOWLEDGE SKILL | H28: 1.54 | I28: =I27 -> 1.52 | J28: J82:J83 | K28: J82:J83 | L28: J82:J83 | M28: J82:J83 | N28: J82:J83
A29: 29 | B29: Start | C29: J86:J96 | D29: J86:J96 | F29: CLASS & LEVEL | G29: MANEUVERS | H29: 1.55 | I29: 1.52 | J29: J86:J96 | K29: J86:J96 | L29: J86:J96 | M29: J86:J96 | N29: J86:J96
A30: 30 | B30: Start | C30: J99:J102 | D30: J99:J102 | F30: CLASS & LEVEL | G30: ELEMENTAL DISCIPLINE | H30: 1.56 | I30: 1.52 | J30: J99:J102 | K30: J99:J102 | L30: J99:J102 | M30: J99:J102 | N30: J99:J102
A31: 31 | B31: Start | C31: J105:O107 | D31: J105:O107 | F31: CLASS & LEVEL | G31: FAVORED ENEMY | H31: 1.57 | I31: 1.52 | J31: J105:O107 | K31: J105:O107 | L31: J105:O107 | M31: J105:O107 | N31: J105:O107
A32: 32 | B32: Start | C32: J110:J112 | D32: J110:J112 | F32: CLASS & LEVEL | G32: NATURAL EXPLORER | H32: 1.58 | I32: 1.52 | J32: J110:J112 | K32: J110:J112 | L32: J110:J112 | M32: J110:J112 | N32: J110:J112
A33: 33 | B33: Start | C33: J115:J118 | D33: J115:J118 | F33: CLASS & LEVEL | G33: HUNTER FEATURE | H33: 1.59 | I33: 1.52 | J33: J115:J118 | K33: J115:J118 | L33: J115:J118 | M33: J115:J118 | N33: J115:J118
A34: 34 | B34: Start | C34: J121:J128 | D34: J121:J128 | F34: CLASS & LEVEL | G34: INVOCATION | H34: 1.60 | I34: 1.52 | J34: J121:J128 | K34: J121:J128 | L34: J121:J128 | M34: J121:J128 | N34: J121:J128
A35: 35 | B35: Start | C35: L130 | D35: L130 | F35: CLASS & LEVEL | G35: STONE EQUIP | J35: L130 | K35: L130 | L35: L130 | M35: L130 | N35: L130
A36: 36 | B36: Start | C36: J131 | D36: J131 | F36: CLASS & LEVEL | G36: STONE BENEFIT | J36: J131 | K36: J131 | L36: J131 | M36: J131 | N36: J131
A37: 37 | B37: Start | C37: AD24 | D37: AD24 | F37: CHARACTER DETAILS | G37: PLAYER NAME | J37: AD24 | K37: AD24 | L37: AD24 | M37: AD24 | N37: AD24
A38: 38 | B38: Start | C38: AD25 | D38: AD25 | F38: CHARACTER DETAILS | G38: CAMPAIGN | J38: AD25 | K38: AD25 | L38: AD25 | M38: AD25 | N38: AD25
A39: 39 | B39: Start | C39: AD26 | D39: AD26 | F39: CHARACTER DETAILS | G39: REGION | J39: AD26 | K39: AD26 | L39: AD26 | M39: AD26 | N39: AD26
A40: 40 | B40: Start | C40: AD27 | D40: AD27 | F40: CHARACTER DETAILS | G40: CHARACTER NAME | J40: AD27 | K40: AD27 | L40: AD27 | M40: AD27 | N40: AD27
A41: 41 | B41: Start | C41: AD28 | D41: AD28 | F41: CHARACTER DETAILS | G41: RACE | J41: AD28 | K41: AD28 | L41: AD28 | M41: AD28 | N41: AD28
A42: 42 | B42: Start | C42: AD29 | D42: AD29 | F42: CHARACTER DETAILS | G42: SUBRACE | J42: AD29 | K42: AD29 | L42: AD29 | M42: AD29 | N42: AD29
A43: 43 | B43: Start | C43: AM28 | D43: AM28 | F43: CHARACTER DETAILS | G43: RACE RENAME | J43: AM28 | K43: AM28 | L43: AM28 | M43: AM28 | N43: AM28
A44: 44 | B44: Start | C44: AM29 | D44: AM29 | F44: CHARACTER DETAILS | G44: SUBRACE RENAME | J44: AM29 | K44: AM29 | L44: AM29 | M44: AM29 | N44: AM29
A45: 45 | B45: Start | C45: AM31 | D45: AM31 | F45: CHARACTER DETAILS | G45: SPEED ADJUSTMENT | J45: AM31 | K45: AM31 | L45: AM31 | M45: AM31 | N45: AM31
A46: 46 | B46: Start | C46: AM32 | D46: AM32 | F46: CHARACTER DETAILS | G46: VISION OVERRIDE | J46: AM32 | K46: AM32 | L46: AM32 | M46: AM32 | N46: AM32
A47: 47 | B47: Start | C47: AD33 | D47: AD33 | F47: CHARACTER DETAILS | G47: BACKGROUND | J47: AD33 | K47: AD33 | L47: AD33 | M47: AD33 | N47: AD33
A48: 48 | B48: Start | C48: AM33 | D48: AM33 | F48: CHARACTER DETAILS | G48: BACKGROUND RENAME | J48: AM33 | K48: AM33 | L48: AM33 | M48: AM33 | N48: AM33
A49: 49 | B49: Start | C49: V36 | D49: V36 | F49: CHARACTER DETAILS | G49: SPECIALTY | J49: V36 | K49: V36 | L49: V36 | M49: V36 | N49: V36
A50: 50 | B50: Start | C50: V38 | D50: V38 | F50: CHARACTER DETAILS | G50: PERSONALITY TRAIT 1 | J50: V38 | K50: V38 | L50: V38 | M50: V38 | N50: V38
A51: 51 | B51: Start | C51: V40 | D51: V40 | F51: CHARACTER DETAILS | G51: PERSONALITY TRAIT 2 | J51: V40 | K51: V40 | L51: V40 | M51: V40 | N51: V40
A52: 52 | B52: Start | C52: V43 | D52: V43 | F52: CHARACTER DETAILS | G52: IDEAL | J52: V43 | K52: V43 | L52: V43 | M52: V43 | N52: V43
A53: 53 | B53: Start | C53: V46 | D53: V46 | F53: CHARACTER DETAILS | G53: BOND | J53: V46 | K53: V46 | L53: V46 | M53: V46 | N53: V46
A54: 54 | B54: Start | C54: V49 | D54: V49 | F54: CHARACTER DETAILS | G54: FLAW | J54: V49 | K54: V49 | L54: V49 | M54: V49 | N54: V49
A55: 55 | B55: Start | C55: AD51 | D55: AD51 | F55: CHARACTER DETAILS | G55: GENDER | J55: AD51 | K55: AD51 | L55: AD51 | M55: AD51 | N55: AD51
A56: 56 | B56: Start | C56: AD52 | D56: AD52 | F56: CHARACTER DETAILS | G56: AGE | J56: AD52 | K56: AD52 | L56: AD52 | M56: AD52 | N56: AD52
A57: 57 | B57: Start | C57: AD56 | D57: AD56 | F57: CHARACTER DETAILS | G57: HEIGHT | J57: AD56 | K57: AD56 | L57: AD56 | M57: AD56 | N57: AD56
A58: 58 | B58: Start | C58: AD57 | D58: AD57 | F58: CHARACTER DETAILS | G58: WEIGHT | J58: AD57 | K58: AD57 | L58: AD57 | M58: AD57 | N58: AD57
A59: 59 | B59: Start | C59: AD58 | D59: AD58 | F59: CHARACTER DETAILS | G59: SKIN | J59: AD58 | K59: AD58 | L59: AD58 | M59: AD58 | N59: AD58
A60: 60 | B60: Start | C60: AD59 | D60: AD59 | F60: CHARACTER DETAILS | G60: EYES | J60: AD59 | K60: AD59 | L60: AD59 | M60: AD59 | N60: AD59
A61: 61 | B61: Start | C61: AD60 | D61: AD60 | F61: CHARACTER DETAILS | G61: HAIR | J61: AD60 | K61: AD60 | L61: AD60 | M61: AD60 | N61: AD60
A62: 62 | B62: Start | C62: AD61 | D62: AD61 | F62: CHARACTER DETAILS | G62: ALIGNMENT | J62: AD61 | K62: AD61 | L62: AD61 | M62: AD61 | N62: AD61
A63: 63 | B63: Start | C63: AD64 | D63: AD64 | F63: CHARACTER DETAILS | G63: RELIGION / PATRON DEITY | J63: AD64 | K63: AD64 | L63: AD64 | M63: AD64 | N63: AD64
A64: 64 | B64: Start | C64: AE73:AE81 | D64: AE73:AE81 | F64: SKILLS | G64: SKILLS 1 | J64: AE73:AE81 | K64: AE73:AE81 | L64: AE73:AE81 | M64: AE73:AE81 | N64: AE73:AE81
A65: 65 | B65: Start | C65: AQ73:AQ81 | D65: AQ73:AQ81 | F65: SKILLS | G65: SKILLS 2 | J65: AQ73:AQ81 | K65: AQ73:AQ81 | L65: AQ73:AQ81 | M65: AQ73:AQ81 | N65: AQ73:AQ81
A66: 66 | B66: Start | C66: =HLOOKUP(I$3,$J$1:$O$630,$A66,FALSE) -> X106 | D66: =HLOOKUP(H$3,$J$1:$O$630,$A66,FALSE) -> X106 | F66: SKILLS | G66: FEATS | J66: X106 | K66: X106 | L66: X106 | M66: X106 | N66: X106
A67: 67 | B67: Start | C67: AB119:AB126 | D67: AB119:AB126 | F67: ABILITY SCORE IMPROVEMENT & FEATS | G67: FEATS | J67: AB119:AB126 | K67: AB119:AB126 | L67: AB119:AB126 | M67: AB119:AB126 | N67: AB119:AB126
A68: 68 | B68: Start | C68: AB126:AB128 | D68: AB126:AB128 | F68: ABILITY SCORE IMPROVEMENT & FEATS | G68: ADDITIONAL FEATS | J68: AB126:AB128 | K68: AB126:AB128 | L68: AB126:AB128 | M68: AB126:AB128 | N68: AB126:AB128
A69: 69 | B69: Start | C69: AB129 | D69: AB129 | F69: ABILITY SCORE IMPROVEMENT & FEATS | G69: ADDITIONAL FEATS | J69: AB129 | K69: AB129 | L69: AB129 | M69: AB129 | N69: AB129
A70: 70 | B70: Start | C70: AL119:AL123 | D70: AL119:AL123 | F70: ABILITY SCORE IMPROVEMENT & FEATS | G70: ELEMENTAL ADEPT | J70: AL119:AL123 | K70: AL119:AL123 | L70: AL119:AL123 | M70: AL119:AL123 | N70: AL119:AL123
A71: 71 | B71: Start | C71: AR119:AR122 | D71: AR119:AR122 | F71: ABILITY SCORE IMPROVEMENT & FEATS | G71: WEAPON MASTER | J71: AR119:AR122 | K71: AR119:AR122 | L71: AR119:AR122 | M71: AR119:AR122 | N71: AR119:AR122
A72: =A71+1 -> 72 | B72: Start | C72: AX119:AY122 | D72: AX119:AY122 | E72: =IF(C72=D72,"",TRUE) ->  | F72: ABILITY SCORE IMPROVEMENT & FEATS | G72: MAGIC INITIATE | J72: AX119 | K72: AX119 | L72: AX119:AY122 | M72: AX119:AY122 | N72: AX119:AY122
A73: 73 | B73: Start | C73: AY125 | D73: AY125 | E73: =IF(C73=D73,"",TRUE) ->  | F73: ABILITY SCORE IMPROVEMENT & FEATS | G73: RITUAL CASTER | L73: AY125 | M73: AY125 | N73: AY125
A74: 74 | B74: Start | C74: AY128:AY129 | D74: AY128:AY129 | F74: ABILITY SCORE IMPROVEMENT & FEATS | G74: SPELL SNIPER | L74: AY128:AY129 | M74: AY128:AY129 | N74: AY128:AY129
A75: 75 | B75: Start | C75: AB131 | D75: AB131 | F75: ABILITY SCORE IMPROVEMENT & FEATS | G75: FEAT LOOKUP | J75: AB131 | K75: AB131 | L75: AB131 | M75: AB131 | N75: AB131
A76: 76 | B76: Start | C76: AX24:AX38 | D76: AX24:AX38 | F76: LANGUAGES | G76: LANGUAGE | J76: AX24:AX38 | K76: AX24:AX38 | L76: AX24:AX38 | M76: AX24:AX38 | N76: AX24:AX38
A77: 77 | B77: Start | C77: AY54 | D77: AY54 | F77: LANGUAGES | G77: TRAINING | J77: AY54 | K77: AY54 | L77: AY54 | M77: AY54 | N77: AY54
A78: 78 | B78: Start | C78: AX66:AX80 | D78: AX66:AX80 | F78: TOOLS | G78: TOOL | J78: AX66:AX80 | K78: AX66:AX80 | L78: AX66:AX80 | M78: AX66:AX80 | N78: AX66:AX80
A79: 79 | B79: Start | C79: AY96 | D79: AY96 | F79: TOOLS | G79: TRAINING | J79: AY96 | K79: AY96 | L79: AY96 | M79: AY96 | N79: AY96
A80: 80 | B80: Start | C80: AX98 | D80: AX98 | F80: TOOLS | G80: FEAT | J80: AX98 | K80: AX98 | L80: AX98 | M80: AX98 | N80: AX98
A81: 81 | B81: Start | C81: AZ109:BC113 | D81: AZ109:BC113 | F81: COINAGE | G81: CARRIED, TOTAL | J81: AZ109:BC113 | K81: AZ109:BC113 | L81: AZ109:BC113 | M81: AZ109:BC113 | N81: AZ109:BC113
A82: 82 | B82: Start | C82: C147 | D82: C147 | F82: EQUIPMENT WORN | G82: HEAD | J82: C147 | K82: C147 | L82: C147 | M82: C147 | N82: C147
A83: 83 | B83: Start | C83: C150 | D83: C150 | F83: EQUIPMENT WORN | G83: EYES | J83: C150 | K83: C150 | L83: C150 | M83: C150 | N83: C150
A84: 84 | B84: Start | C84: C153 | D84: C153 | F84: EQUIPMENT WORN | G84: NECK | J84: C153 | K84: C153 | L84: C153 | M84: C153 | N84: C153
A85: 85 | B85: Start | C85: C156 | D85: C156 | F85: EQUIPMENT WORN | G85: SHOULDERS | J85: C156 | K85: C156 | L85: C156 | M85: C156 | N85: C156
A86: 86 | B86: Start | C86: C159 | D86: C159 | F86: EQUIPMENT WORN | G86: RINGS | J86: C159 | K86: C159 | L86: C159 | M86: C159 | N86: C159
A87: 87 | B87: Start | C87: C162 | D87: C162 | F87: EQUIPMENT WORN | G87: RINGS | J87: C162 | K87: C162 | L87: C162 | M87: C162 | N87: C162
A88: 88 | B88: Start | C88: C165 | D88: C165 | F88: EQUIPMENT WORN | G88: HANDS | J88: C165 | K88: C165 | L88: C165 | M88: C165 | N88: C165
A89: 89 | B89: Start | C89: C168 | D89: C168 | F89: EQUIPMENT WORN | G89: ARMS / WRISTS | J89: C168 | K89: C168 | L89: C168 | M89: C168 | N89: C168
A90: 90 | B90: Start | C90: C171 | D90: C171 | F90: EQUIPMENT WORN | G90: BODY | J90: C171 | K90: C171 | L90: C171 | M90: C171 | N90: C171
A91: 91 | B91: Start | C91: C174 | D91: C174 | F91: EQUIPMENT WORN | G91: TORSO | J91: C174 | K91: C174 | L91: C174 | M91: C174 | N91: C174
A92: 92 | B92: Start | C92: C177 | D92: C177 | F92: EQUIPMENT WORN | G92: WAIST | J92: C177 | K92: C177 | L92: C177 | M92: C177 | N92: C177
A93: 93 | B93: Start | C93: C180 | D93: C180 | F93: EQUIPMENT WORN | G93: FEET | J93: C180 | K93: C180 | L93: C180 | M93: C180 | N93: C180
A94: 94 | B94: Start | C94: Y145 | D94: Y145 | F94: ARMOR & SHIELD | G94: ARMOR NAME | J94: Y145 | K94: Y145 | L94: Y145 | M94: Y145 | N94: Y145
A95: 95 | B95: Start | C95: Y146 | D95: Y146 | F95: ARMOR & SHIELD | G95: ARMOR BONUS | J95: Y146 | K95: Y146 | L95: Y146 | M95: Y146 | N95: Y146
A96: 96 | B96: Start | C96: Y162 | D96: Y162 | F96: ARMOR & SHIELD | G96: ARMOR NAME | J96: Y162 | K96: Y162 | L96: Y162 | M96: Y162 | N96: Y162
A97: 97 | B97: Start | C97: Y164 | D97: Y164 | F97: ARMOR & SHIELD | G97: ARMOR GROUP | J97: Y164 | K97: Y164 | L97: Y164 | M97: Y164 | N97: Y164
A98: 98 | B98: Start | C98: Y165 | D98: Y165 | F98: ARMOR & SHIELD | G98: ARMOR PROFICIENT | J98: Y165 | K98: Y165 | L98: Y165 | M98: Y165 | N98: Y165
A99: 99 | B99: Start | C99: Y166 | D99: Y166 | F99: ARMOR & SHIELD | G99: ARMOR ARMOR CLASS | J99: Y166 | K99: Y166 | L99: Y166 | M99: Y166 | N99: Y166
A100: 100 | B100: Start | C100: Y167 | D100: Y167 | F100: ARMOR & SHIELD | G100: ARMOR DEX MODIFIER | J100: Y167 | K100: Y167 | L100: Y167 | M100: Y167 | N100: Y167
A101: 101 | B101: Start | C101: Y168 | D101: Y168 | F101: ARMOR & SHIELD | G101: ARMOR STRENGTH | J101: Y168 | K101: Y168 | L101: Y168 | M101: Y168 | N101: Y168
A102: 102 | B102: Start | C102: Y169 | D102: Y169 | F102: ARMOR & SHIELD | G102: ARMOR STEALTH | J102: Y169 | K102: Y169 | L102: Y169 | M102: Y169 | N102: Y169
A103: 103 | B103: Start | C103: Y170 | D103: Y170 | F103: ARMOR & SHIELD | G103: ARMOR WEIGHT | J103: Y170 | K103: Y170 | L103: Y170 | M103: Y170 | N103: Y170
A104: 104 | B104: Start | C104: Y171 | D104: Y171 | F104: ARMOR & SHIELD | G104: ARMOR PROPERTIES | J104: Y171 | K104: Y171 | L104: Y171 | M104: Y171 | N104: Y171
A105: 105 | B105: Start | C105: Y176 | D105: Y176 | F105: ARMOR & SHIELD | G105: ARMOR OTHER ARMOR | J105: Y176 | K105: Y176 | L105: Y176 | M105: Y176 | N105: Y176
A106: 106 | B106: Start | C106: AG145 | D106: AG145 | F106: ARMOR & SHIELD | G106: SHIELD NAME | J106: AG145 | K106: AG145 | L106: AG145 | M106: AG145 | N106: AG145
A107: 107 | B107: Start | C107: AG146 | D107: AG146 | F107: ARMOR & SHIELD | G107: SHIELD BONUS | J107: AG146 | K107: AG146 | L107: AG146 | M107: AG146 | N107: AG146
A108: 108 | B108: Start | C108: AG162 | D108: AG162 | F108: ARMOR & SHIELD | G108: SHIELD NAME | J108: AG162 | K108: AG162 | L108: AG162 | M108: AG162 | N108: AG162
A109: 109 | B109: Start | C109: AG164 | D109: AG164 | F109: ARMOR & SHIELD | G109: SHIELD GROUP | J109: AG164 | K109: AG164 | L109: AG164 | M109: AG164 | N109: AG164
A110: 110 | B110: Start | C110: AG165 | D110: AG165 | F110: ARMOR & SHIELD | G110: SHIELD PROFICIENT | J110: AG165 | K110: AG165 | L110: AG165 | M110: AG165 | N110: AG165
A111: 111 | B111: Start | C111: AG166 | D111: AG166 | F111: ARMOR & SHIELD | G111: SHIELD SHIELD CLASS | J111: AG166 | K111: AG166 | L111: AG166 | M111: AG166 | N111: AG166
A112: 112 | B112: Start | C112: AG167 | D112: AG167 | F112: ARMOR & SHIELD | G112: SHIELD DEX MODIFIER | J112: AG167 | K112: AG167 | L112: AG167 | M112: AG167 | N112: AG167
A113: 113 | B113: Start | C113: AG168 | D113: AG168 | F113: ARMOR & SHIELD | G113: SHIELD STRENGTH | J113: AG168 | K113: AG168 | L113: AG168 | M113: AG168 | N113: AG168
A114: 114 | B114: Start | C114: AG169 | D114: AG169 | F114: ARMOR & SHIELD | G114: SHIELD STEALTH | J114: AG169 | K114: AG169 | L114: AG169 | M114: AG169 | N114: AG169
A115: 115 | B115: Start | C115: AG170 | D115: AG170 | F115: ARMOR & SHIELD | G115: SHIELD WEIGHT | J115: AG170 | K115: AG170 | L115: AG170 | M115: AG170 | N115: AG170
A116: 116 | B116: Start | C116: AG171 | D116: AG171 | F116: ARMOR & SHIELD | G116: SHIELD PROPERTIES | J116: AG171 | K116: AG171 | L116: AG171 | M116: AG171 | N116: AG171
A117: 117 | B117: Start | C117: AG179 | D117: AG179 | F117: ARMOR & SHIELD | G117: DAMAGE RESISTANCE | J117: AG179 | K117: AG179 | L117: AG179 | M117: AG179 | N117: AG179
A118: 118 | B118: Start | C118: AG180 | D118: AG180 | F118: ARMOR & SHIELD | G118: DAMAGE REDUCTION | J118: AG180 | K118: AG180 | L118: AG180 | M118: AG180 | N118: AG180
A119: 119 | B119: Start | C119: AV145 | D119: AV145 | F119: ATTACKS | G119: ATTACK1 WEAPON | J119: AV145 | K119: AV145 | L119: AV145 | M119: AV145 | N119: AV145
A120: 120 | B120: Start | C120: AV146 | D120: AV146 | F120: ATTACKS | G120: ATTACK1 BONUS | J120: AV146 | K120: AV146 | L120: AV146 | M120: AV146 | N120: AV146
A121: 121 | B121: Start | C121: AV148 | D121: AV148 | F121: ATTACKS | G121: ATTACK1 BONUS | J121: AV148 | K121: AV148 | L121: AV148 | M121: AV148 | N121: AV148
A122: 122 | B122: Start | C122: AX149 | D122: AX149 | F122: ATTACKS | G122: ATTACK1 DUELING | J122: AX149 | K122: AX149 | L122: AX149 | M122: AX149 | N122: AX149
A123: 123 | B123: Start | C123: AV165 | D123: AV165 | F123: ATTACKS | G123: ATTACK1 NAME | J123: AV165 | K123: AV165 | L123: AV165 | M123: AV165 | N123: AV165
A124: 124 | B124: Start | C124: AV167 | D124: AV167 | F124: ATTACKS | G124: ATTACK1 AMMUNITION | J124: AV167 | K124: AV167 | L124: AV167 | M124: AV167 | N124: AV167
A125: 125 | B125: Start | C125: AV168 | D125: AV168 | F125: ATTACKS | G125: ATTACK1 GROUP | J125: AV168 | K125: AV168 | L125: AV168 | M125: AV168 | N125: AV168
A126: 126 | B126: Start | C126: AV169 | D126: AV169 | F126: ATTACKS | G126: ATTACK1 PROFICIENT | J126: AV169 | K126: AV169 | L126: AV169 | M126: AV169 | N126: AV169
A127: 127 | B127: Start | C127: AV170 | D127: AV170 | F127: ATTACKS | G127: ATTACK1 ATTACK BONUS | J127: AV170 | K127: AV170 | L127: AV170 | M127: AV170 | N127: AV170
A128: 128 | B128: Start | C128: AV171 | D128: AV171 | F128: ATTACKS | G128: ATTACK1 DAMAGE | J128: AV171 | K128: AV171 | L128: AV171 | M128: AV171 | N128: AV171
A129: 129 | B129: Start | C129: AV172 | D129: AV172 | F129: ATTACKS | G129: ATTACK1 TYPE | J129: AV172 | K129: AV172 | L129: AV172 | M129: AV172 | N129: AV172
A130: 130 | B130: Start | C130: =HLOOKUP(I$3,$J$1:$O$630,$A130,FALSE) -> AV173 | D130: =HLOOKUP(H$3,$J$1:$O$630,$A130,FALSE) -> AV173 | F130: ATTACKS | G130: ATTACK1 RANGE | J130: AV173 | K130: AV173 | L130: AV173 | M130: AV173 | N130: AV173
A131: 131 | B131: Start | C131: AV174 | D131: AV174 | F131: ATTACKS | G131: ATTACK1 WEIGHT | J131: AV174 | K131: AV174 | L131: AV174 | M131: AV174 | N131: AV174
A132: 132 | B132: Start | C132: AV175 | D132: AV175 | F132: ATTACKS | G132: ATTACK1 PROPERTIES | J132: AV175 | K132: AV175 | L132: AV175 | M132: AV175 | N132: AV175
A133: 133 | B133: Start | C133: BD145 | D133: BD145 | F133: ATTACKS | G133: ATTACK2 WEAPON | J133: BD145 | K133: BD145 | L133: BD145 | M133: BD145 | N133: BD145
A134: 134 | B134: Start | C134: BD146 | D134: BD146 | F134: ATTACKS | G134: ATTACK2 BONUS | J134: BD146 | K134: BD146 | L134: BD146 | M134: BD146 | N134: BD146
A135: 135 | B135: Start | C135: BD148 | D135: BD148 | F135: ATTACKS | G135: ATTACK2 BONUS | J135: BD148 | K135: BD148 | L135: BD148 | M135: BD148 | N135: BD148
A136: =A135+1 -> 136 | B136: Start | C136: BF149 | D136: BF149 | F136: ATTACKS | G136: ATTACK2 DUELING | J136: BF149 | K136: BF149 | L136: BF149 | M136: BF149 | N136: BF149
A137: 137 | B137: Start | C137: BD165 | D137: BD165 | F137: ATTACKS | G137: ATTACK2 NAME | J137: BD165 | K137: BD165 | L137: BD165 | M137: BD165 | N137: BD165
A138: 138 | B138: Start | C138: BD167 | D138: BD167 | E138: =IF(C138=D138,"",TRUE) ->  | F138: ATTACKS | G138: ATTACK2 AMMUNITION | J138: BD167 | K138: BD167 | L138: BD167 | M138: BD167 | N138: BD167
A139: 139 | B139: Start | C139: BD168 | D139: BD168 | F139: ATTACKS | G139: ATTACK2 GROUP | J139: BD168 | K139: BD168 | L139: BD168 | M139: BD168 | N139: BD168
A140: 140 | B140: Start | C140: BD169 | D140: BD169 | F140: ATTACKS | G140: ATTACK2 PROFICIENT | J140: BD169 | K140: BD169 | L140: BD169 | M140: BD169 | N140: BD169
A141: 141 | B141: Start | C141: BD170 | D141: BD170 | F141: ATTACKS | G141: ATTACK2 ATTACK BONUS | J141: BD170 | K141: BD170 | L141: BD170 | M141: BD170 | N141: BD170
A142: 142 | B142: Start | C142: BD171 | D142: BD171 | F142: ATTACKS | G142: ATTACK2 DAMAGE | J142: BD171 | K142: BD171 | L142: BD171 | M142: BD171 | N142: BD171
A143: 143 | B143: Start | C143: BD172 | D143: BD172 | F143: ATTACKS | G143: ATTACK2 TYPE | J143: BD172 | K143: BD172 | L143: BD172 | M143: BD172 | N143: BD172
A144: 144 | B144: Start | C144: BD173 | D144: BD173 | F144: ATTACKS | G144: ATTACK2 RANGE | J144: BD173 | K144: BD173 | L144: BD173 | M144: BD173 | N144: BD173
A145: 145 | B145: Start | C145: BD174 | D145: BD174 | F145: ATTACKS | G145: ATTACK2 WEIGHT | J145: BD174 | K145: BD174 | L145: BD174 | M145: BD174 | N145: BD174
A146: 146 | B146: Start | C146: BD175 | D146: BD175 | F146: ATTACKS | G146: ATTACK2 PROPERTIES | J146: BD175 | K146: BD175 | L146: BD175 | M146: BD175 | N146: BD175
A147: 147 | B147: Start | C147: BL145 | D147: BL145 | F147: ATTACKS | G147: ATTACK3 WEAPON | J147: BL145 | K147: BL145 | L147: BL145 | M147: BL145 | N147: BL145
A148: 148 | B148: Start | C148: BL146 | D148: BL146 | F148: ATTACKS | G148: ATTACK3 BONUS | J148: BL146 | K148: BL146 | L148: BL146 | M148: BL146 | N148: BL146
A149: 149 | B149: Start | C149: BL148 | D149: BL148 | F149: ATTACKS | G149: ATTACK3 BONUS | J149: BL148 | K149: BL148 | L149: BL148 | M149: BL148 | N149: BL148
A150: 150 | B150: Start | C150: BN149 | D150: BN149 | F150: ATTACKS | G150: ATTACK3 DUELING | J150: BN149 | K150: BN149 | L150: BN149 | M150: BN149 | N150: BN149
A151: 151 | B151: Start | C151: BL165 | D151: BL165 | F151: ATTACKS | G151: ATTACK3 NAME | J151: BL165 | K151: BL165 | L151: BL165 | M151: BL165 | N151: BL165
A152: 152 | B152: Start | C152: BL167 | D152: BL167 | F152: ATTACKS | G152: ATTACK3 AMMUNITION | J152: BL167 | K152: BL167 | L152: BL167 | M152: BL167 | N152: BL167
A153: 153 | B153: Start | C153: BL168 | D153: BL168 | F153: ATTACKS | G153: ATTACK3 GROUP | J153: BL168 | K153: BL168 | L153: BL168 | M153: BL168 | N153: BL168
A154: 154 | B154: Start | C154: BL169 | D154: BL169 | F154: ATTACKS | G154: ATTACK3 PROFICIENT | J154: BL169 | K154: BL169 | L154: BL169 | M154: BL169 | N154: BL169
A155: 155 | B155: Start | C155: BL170 | D155: BL170 | F155: ATTACKS | G155: ATTACK3 ATTACK BONUS | J155: BL170 | K155: BL170 | L155: BL170 | M155: BL170 | N155: BL170
A156: 156 | B156: Start | C156: BL171 | D156: BL171 | F156: ATTACKS | G156: ATTACK3 DAMAGE | J156: BL171 | K156: BL171 | L156: BL171 | M156: BL171 | N156: BL171
A157: 157 | B157: Start | C157: BL172 | D157: BL172 | F157: ATTACKS | G157: ATTACK3 TYPE | J157: BL172 | K157: BL172 | L157: BL172 | M157: BL172 | N157: BL172
A158: 158 | B158: Start | C158: BL173 | D158: BL173 | F158: ATTACKS | G158: ATTACK3 RANGE | J158: BL173 | K158: BL173 | L158: BL173 | M158: BL173 | N158: BL173
A159: 159 | B159: Start | C159: BL174 | D159: BL174 | F159: ATTACKS | G159: ATTACK3 WEIGHT | J159: BL174 | K159: BL174 | L159: BL174 | M159: BL174 | N159: BL174
A160: 160 | B160: Start | C160: BL175 | D160: BL175 | F160: ATTACKS | G160: ATTACK3 PROPERTIES | J160: BL175 | K160: BL175 | L160: BL175 | M160: BL175 | N160: BL175
A161: 161 | B161: Start | C161: BT145 | D161: BT145 | F161: ATTACKS | G161: ATTACK4 WEAPON | J161: BT145 | K161: BT145 | L161: BT145 | M161: BT145 | N161: BT145
A162: 162 | B162: Start | C162: BT146 | D162: BT146 | F162: ATTACKS | G162: ATTACK4 BONUS | J162: BT146 | K162: BT146 | L162: BT146 | M162: BT146 | N162: BT146
A163: 163 | B163: Start | C163: BT148 | D163: BT148 | F163: ATTACKS | G163: ATTACK4 BONUS | J163: BT148 | K163: BT148 | L163: BT148 | M163: BT148 | N163: BT148
A164: 164 | B164: Start | C164: BT149 | D164: BT149 | F164: ATTACKS | G164: ATTACK4 DUELING | J164: BT149 | K164: BT149 | L164: BT149 | M164: BT149 | N164: BT149
A165: 165 | B165: Start | C165: BT165 | D165: BT165 | F165: ATTACKS | G165: ATTACK4 NAME | J165: BT165 | K165: BT165 | L165: BT165 | M165: BT165 | N165: BT165
A166: 166 | B166: Start | C166: BT167 | D166: BT167 | F166: ATTACKS | G166: ATTACK4 AMMUNITION | J166: BT167 | K166: BT167 | L166: BT167 | M166: BT167 | N166: BT167
A167: 167 | B167: Start | C167: BT168 | D167: BT168 | F167: ATTACKS | G167: ATTACK4 GROUP | J167: BT168 | K167: BT168 | L167: BT168 | M167: BT168 | N167: BT168
A168: 168 | B168: Start | C168: BT169 | D168: BT169 | F168: ATTACKS | G168: ATTACK4 PROFICIENT | J168: BT169 | K168: BT169 | L168: BT169 | M168: BT169 | N168: BT169
A169: 169 | B169: Start | C169: BT170 | D169: BT170 | F169: ATTACKS | G169: ATTACK4 ATTACK BONUS | J169: BT170 | K169: BT170 | L169: BT170 | M169: BT170 | N169: BT170
A170: 170 | B170: Start | C170: BT171 | D170: BT171 | F170: ATTACKS | G170: ATTACK4 DAMAGE | J170: BT171 | K170: BT171 | L170: BT171 | M170: BT171 | N170: BT171
A171: 171 | B171: Start | C171: BT172 | D171: BT172 | F171: ATTACKS | G171: ATTACK4 TYPE | J171: BT172 | K171: BT172 | L171: BT172 | M171: BT172 | N171: BT172
A172: 172 | B172: Start | C172: BT173 | D172: BT173 | F172: ATTACKS | G172: ATTACK4 RANGE | J172: BT173 | K172: BT173 | L172: BT173 | M172: BT173 | N172: BT173
A173: 173 | B173: Start | C173: BT174 | D173: BT174 | F173: ATTACKS | G173: ATTACK4 WEIGHT | J173: BT174 | K173: BT174 | L173: BT174 | M173: BT174 | N173: BT174
A174: 174 | B174: Start | C174: BT175 | D174: BT175 | F174: ATTACKS | G174: ATTACK4 PROPERTIES | J174: BT175 | K174: BT175 | L174: BT175 | M174: BT175 | N174: BT175
A175: 175 | B175: Start | C175: CB145 | D175: CB145 | F175: ATTACKS | G175: ATTACK5 WEAPON | J175: CB145 | K175: CB145 | L175: CB145 | M175: CB145 | N175: CB145
A176: 176 | B176: Start | C176: CB146 | D176: CB146 | F176: ATTACKS | G176: ATTACK5 BONUS | J176: CB146 | K176: CB146 | L176: CB146 | M176: CB146 | N176: CB146
A177: 177 | B177: Start | C177: CB148 | D177: CB148 | F177: ATTACKS | G177: ATTACK5 BONUS | J177: CB148 | K177: CB148 | L177: CB148 | M177: CB148 | N177: CB148
A178: 178 | B178: Start | C178: CD149 | D178: CD149 | F178: ATTACKS | G178: ATTACK5 DUELING | J178: CD149 | K178: CD149 | L178: CD149 | M178: CD149 | N178: CD149
A179: 179 | B179: Start | C179: CB165 | D179: CB165 | F179: ATTACKS | G179: ATTACK5 NAME | J179: CB165 | K179: CB165 | L179: CB165 | M179: CB165 | N179: CB165
A180: 180 | B180: Start | C180: CB167 | D180: CB167 | F180: ATTACKS | G180: ATTACK5 AMMUNITION | J180: CB167 | K180: CB167 | L180: CB167 | M180: CB167 | N180: CB167
A181: 181 | B181: Start | C181: CB168 | D181: CB168 | F181: ATTACKS | G181: ATTACK5 GROUP | J181: CB168 | K181: CB168 | L181: CB168 | M181: CB168 | N181: CB168
A182: 182 | B182: Start | C182: CB169 | D182: CB169 | F182: ATTACKS | G182: ATTACK5 PROFICIENT | J182: CB169 | K182: CB169 | L182: CB169 | M182: CB169 | N182: CB169
A183: 183 | B183: Start | C183: CB170 | D183: CB170 | F183: ATTACKS | G183: ATTACK5 ATTACK BONUS | J183: CB170 | K183: CB170 | L183: CB170 | M183: CB170 | N183: CB170
A184: 184 | B184: Start | C184: CB171 | D184: CB171 | F184: ATTACKS | G184: ATTACK5 DAMAGE | J184: CB171 | K184: CB171 | L184: CB171 | M184: CB171 | N184: CB171
A185: 185 | B185: Start | C185: CB172 | D185: CB172 | F185: ATTACKS | G185: ATTACK5 TYPE | J185: CB172 | K185: CB172 | L185: CB172 | M185: CB172 | N185: CB172
A186: 186 | B186: Start | C186: CB173 | D186: CB173 | F186: ATTACKS | G186: ATTACK5 RANGE | J186: CB173 | K186: CB173 | L186: CB173 | M186: CB173 | N186: CB173
A187: 187 | B187: Start | C187: CB174 | D187: CB174 | F187: ATTACKS | G187: ATTACK5 WEIGHT | J187: CB174 | K187: CB174 | L187: CB174 | M187: CB174 | N187: CB174
A188: 188 | B188: Start | C188: CB175 | D188: CB175 | F188: ATTACKS | G188: ATTACK5 PROPERTIES | J188: CB175 | K188: CB175 | L188: CB175 | M188: CB175 | N188: CB175
A189: 189 | B189: Start | C189: CJ145 | D189: CJ145 | F189: ATTACKS | G189: ATTACK6 WEAPON | J189: CJ145 | K189: CJ145 | L189: CJ145 | M189: CJ145 | N189: CJ145
A190: 190 | B190: Start | C190: CJ146 | D190: CJ146 | F190: ATTACKS | G190: ATTACK6 BONUS | J190: CJ146 | K190: CJ146 | L190: CJ146 | M190: CJ146 | N190: CJ146
A191: 191 | B191: Start | C191: CJ148 | D191: CJ148 | F191: ATTACKS | G191: ATTACK6 BONUS | J191: CJ148 | K191: CJ148 | L191: CJ148 | M191: CJ148 | N191: CJ148
A192: 192 | B192: Start | C192: CL149 | D192: CL149 | F192: ATTACKS | G192: ATTACK6 DUELING | J192: CL149 | K192: CL149 | L192: CL149 | M192: CL149 | N192: CL149
A193: 193 | B193: Start | C193: CJ165 | D193: CJ165 | F193: ATTACKS | G193: ATTACK6 NAME | J193: CJ165 | K193: CJ165 | L193: CJ165 | M193: CJ165 | N193: CJ165
A194: 194 | B194: Start | C194: =HLOOKUP(I$3,$J$1:$O$630,$A194,FALSE) -> CJ167 | D194: =HLOOKUP(H$3,$J$1:$O$630,$A194,FALSE) -> CJ167 | F194: ATTACKS | G194: ATTACK6 AMMUNITION | J194: CJ167 | K194: CJ167 | L194: CJ167 | M194: CJ167 | N194: CJ167
A195: 195 | B195: Start | C195: CJ168 | D195: CJ168 | F195: ATTACKS | G195: ATTACK6 GROUP | J195: CJ168 | K195: CJ168 | L195: CJ168 | M195: CJ168 | N195: CJ168
A196: 196 | B196: Start | C196: CJ169 | D196: CJ169 | F196: ATTACKS | G196: ATTACK6 PROFICIENT | J196: CJ169 | K196: CJ169 | L196: CJ169 | M196: CJ169 | N196: CJ169
A197: 197 | B197: Start | C197: CJ170 | D197: CJ170 | F197: ATTACKS | G197: ATTACK6 ATTACK BONUS | J197: CJ170 | K197: CJ170 | L197: CJ170 | M197: CJ170 | N197: CJ170
A198: 198 | B198: Start | C198: CJ171 | D198: CJ171 | F198: ATTACKS | G198: ATTACK6 DAMAGE | J198: CJ171 | K198: CJ171 | L198: CJ171 | M198: CJ171 | N198: CJ171
A199: 199 | B199: Start | C199: CJ172 | D199: CJ172 | F199: ATTACKS | G199: ATTACK6 TYPE | J199: CJ172 | K199: CJ172 | L199: CJ172 | M199: CJ172 | N199: CJ172
A200: =A199+1 -> 200 | B200: Start | C200: CJ173 | D200: CJ173 | F200: ATTACKS | G200: ATTACK6 RANGE | J200: CJ173 | K200: CJ173 | L200: CJ173 | M200: CJ173 | N200: CJ173
... 430 more rows
